Workbook

Sheet Sheet1
A1: Start here by entering your electricity standing charge. Then tab down this column entering the charges and gas kWh conversion. Then go to page 2 and enter your readings.
A4: Electricity Standing Charge: | B4: 10.96 | C4: In a 31 day month this costs: | D4: =SUM(ESC*31/100) -> 3.3976 | E4: inc. VAT: | F4: =SUM(D4+D4*VATRate) -> 3.56748
A5: Gas Standing Charge: | B5: 27.4 | C5: In a 31 day month this costs: | D5: =SUM(GSC*31/100) -> 8.494 | E5: inc. VAT: | F5: =SUM(D5+D5*VATRate) -> 8.9187
C6: Total cost of standing charges: | D6: =D5+D4 -> 11.8916 | E6: inc. VAT: | F6: =F4+F5 -> 12.48618
A7: Electricity Rate: | B7: 16.36
A8: Gas Rate: | B8: 4.427
A10: Calorific Value: | B10: 39.8
A11: Correction Factor: | B11: 1.02264
A12: kWh conversion factor: | B12: 3.6
A13: CVxCF/kWhCF = GKWHC | B13: =CV*CF/KCF -> 11.30585333
A15: VAT Rate: | B15: 0.05
B18: Notes
B19: 1. Beware of missing a month. It's safest to take readings near the middle of each month but If you normally enter readings near the last day of each month and forget until the start of the next month it's best to back-date the readings into the correct month and reduce them a bit.
B23: 2. You can change the dates of readings on page 2 but if you want to include readings from earlier this year in order to get estimates and yearly totals it's better to enter them as estimates in the relevant month for next year on page 3.
B26: 3. There are a couple of dummy readings on the first two lines on page 2. Just replace them with your readings.
B28: 4. There are likely to be some rounding errors of a few pence. I suspect this might be the power companies.
B30: 5. The pages are protected and some columns are hidden on Page 2 to make it look simpler and to make it easy to tab, but there is no password so if you want to see the hidden columns or change anything just unprotect it.
B33: 6. I've calculated VAT seperately on Gas and Electricity which is how it's done by a few companies though I'm fairly sure that used to be illegal.
B36: 7. The charts on page 3 should start to look more sensible once you enter a couple of lines of readings. They expect one reading a month. If you don't do that - then they should work for quarterly readings and if you make more than one reading for a month they won't cover 12 months - which should be ok but if you want to add rows to page 2 and columns on page 3 you'll have to know what you're doing..
B41: 8. If there is a price change - enter a meter reading the day before. If you continue to use the same sheet the previous months' figures will change to the new prices so it's better to make a copy starting with new sheets for the new rates.

Sheet Sheet2
A1: Enter readings below. Try to take readings on the same day of each month.Then scroll right to see predicted usage and costs. Then go to page 3 to adjust your predicted usage figures for each month.
T3: Projected Usage (All costs include VAT)
C4: Gas | K4: Electricity
A5: Date of Reading | B5: Days | C5: Reading | D5: Used | E5: kWh used | F5: Cost | G5: Standing Charge | H5: Total | I5: VAT | J5: Total inc. VAT | K5: Reading | L5: kWh used | M5: Cost | N5: Standing Charge | O5: Total | P5: VAT | Q5: Total inc. VAT | R5: Total | V5: Total kWh used to date | W5: Average kWh used per 30.5 days | X5: Average cost per 30.5 days inc.SC & VAT | Y5: Projected kWh use over 365 days | Z5: Projected cost over 365 days inc. SC & VAT | AA5: Total Standing Charge for 365 days inc. VAT | AB5: Summer usage = minus 35% over 7 months* | AC5: Summer usage per month* | AD5: Winter usage = plus 35% over 5 months* | AE5: Winter usage per month* | AF5: Total seasonally adjusted usage
A6: 2014-04-15 | C6: 1 | K6: 1 | T6: From: | U6: =A6 -> 2014-04-15
A7: 2014-05-15 | B7: =IF(A7>0,IF(A7-A6>=0,A7-A6,"Err1"),0) -> 30 | C7: 2 | D7: =IF(C7>0,IF(C7-C6>=0,C7-C6,"Err2"),0) -> 1 | E7: =D7*GKWHC -> 11.30585333 | F7: =E7*GR/100 -> 0.5005101271 | G7: =B7*GSC/100 -> 8.22 | H7: =F7+G7 -> 8.720510127 | I7: =H7*VATRate -> 0.4360255064 | J7: =H7+I7 -> 9.156535633 | K7: 2 | L7: =IF(K7>0,IF(K7-K6>=0,K7-K6,"Err3"),0) -> 1 | M7: =L7*ER/100 -> 0.1636 | N7: =B7*ESC/100 -> 3.288 | O7: =M7+N7 -> 3.4516 | P7: =O7*VATRate -> 0.17258 | Q7: =O7+P7 -> 3.62418 | R7: =Q7+J7 -> 12.78071563 | T7: To: | U7: =LOOKUP(MAX(C6:C18),C6:C18,A6:A18) -> 2014-05-15
A8: 2014-06-15 | B8: 31 | D8: 0 | E8: 0 | F8: 0 | G8: 8.494 | H8: 8.494 | I8: 0.4247 | J8: 8.9187 | L8: 0 | M8: 0 | N8: 3.3976 | O8: 3.3976 | P8: 0.16988 | Q8: 3.56748 | R8: 12.48618 | T8: Days: | U8: =U7-U6 -> 30
A9: 2014-07-15 | B9: 30 | D9: 0 | E9: 0 | F9: 0 | G9: 8.22 | H9: 8.22 | I9: 0.411 | J9: 8.631 | L9: 0 | M9: 0 | N9: 3.288 | O9: 3.288 | P9: 0.1644 | Q9: 3.4524 | R9: 12.0834 | U9: Gas | V9: =SUM(E7:E18) -> 11.30585333 | W9: =V9*30.5/DTD -> 11.49428422 | X9: =SUM(F4:F30)*30.5/DTD+GSC*30.5/100+(SUM(F4:F30)*30.5/DTD+GSC*30.5/100)*VATRate -> 9.843439121 | Y9: =V9*365/DTD -> 137.5545489 | Z9: =X9*365/30.5 -> 117.7985337 | AA9: =GSC*3.65+GSC*3.65*VATRate -> 105.0105 | AB9: =((Z6-AA6)*7*0.65/12)+GSC*214/100+GSC*214*VATRate/100 -> 61.5678 | AC9: =AB9/7 -> 8.7954 | AD9: =((Z6-AA6)*5*1.35/12)+GSC*151/100+GSC*151*VATRate/100 -> 43.4427 | AE9: =AD9/5 -> 8.68854 | AF9: =AB9+AD9 -> 105.0105
A10: 2014-08-15 | B10: 31 | D10: 0 | E10: 0 | F10: 0 | G10: 8.494 | H10: 8.494 | I10: 0.4247 | J10: 8.9187 | L10: 0 | M10: 0 | N10: 3.3976 | O10: 3.3976 | P10: 0.16988 | Q10: 3.56748 | R10: 12.48618 | U10: Electricity | V10: =SUM(L7:L18) -> 1 | W10: =V10*30.5/DTD -> 1.016666667 | X10: =SUM(M4:M30)*30.5/DTD+ESC*30.5/100+(SUM(M4:M30)*30.5/DTD+ESC*30.5/100)*VATRate -> 3.859226 | Y10: =V10*365/DTD -> 12.16666667 | Z10: =X10*365/30.5 -> 46.18418 | AA10: =ESC*3.65+ESC*3.65*VATRate -> 42.0042 | AB10: =((Z7-AA7)*7*0.65/12)+ESC*214/100+ESC*214*VATRate/100 -> 24.62712 | AC10: =AB10/7 -> 3.51816 | AD10: =((Z7-AA7)*5*1.35/12)+ESC*151/100+ESC*151*VATRate/100 -> 17.37708 | AE10: =AD10/5 -> 3.475416 | AF10: =AB10+AD10 -> 42.0042
A11: 2014-09-15 | B11: 31 | D11: 0 | E11: 0 | F11: 0 | G11: 8.494 | H11: 8.494 | I11: 0.4247 | J11: 8.9187 | L11: 0 | M11: 0 | N11: 3.3976 | O11: 3.3976 | P11: 0.16988 | Q11: 3.56748 | R11: 12.48618 | U11: Totals | V11: =V9+V10 -> 12.30585333 | W11: 12.51095089 | X11: 13.70266512 | Y11: 149.7212156 | Z11: 163.9827137 | AA11: 147.0147 | AB11: =AB9+AB10 -> 86.19492 | AC11: =AC9+AC10 -> 12.31356 | AD11: =AD9+AD10 -> 60.81978 | AE11: =AE9+AE10 -> 12.163956 | AF11: =AB11+AD11 -> 147.0147
A12: 2014-10-15 | B12: 30 | D12: 0 | E12: 0 | F12: 0 | G12: 8.22 | H12: 8.22 | I12: 0.411 | J12: 8.631 | L12: 0 | M12: 0 | N12: 3.288 | O12: 3.288 | P12: 0.1644 | Q12: 3.4524 | R12: 12.0834 | AB12: *March to September | AD12: *October to February
A13: 2014-11-15 | B13: 31 | D13: 0 | E13: 0 | F13: 0 | G13: 8.494 | H13: 8.494 | I13: 0.4247 | J13: 8.9187 | L13: 0 | M13: 0 | N13: 3.3976 | O13: 3.3976 | P13: 0.16988 | Q13: 3.56748 | R13: 12.48618
A14: 2014-12-15 | B14: 30 | D14: 0 | E14: 0 | F14: 0 | G14: 8.22 | H14: 8.22 | I14: 0.411 | J14: 8.631 | L14: 0 | M14: 0 | N14: 3.288 | O14: 3.288 | P14: 0.1644 | Q14: 3.4524 | R14: 12.0834
A15: 2015-01-15 | B15: 31 | D15: 0 | E15: 0 | F15: 0 | G15: 8.494 | H15: 8.494 | I15: 0.4247 | J15: 8.9187 | L15: 0 | M15: 0 | N15: 3.3976 | O15: 3.3976 | P15: 0.16988 | Q15: 3.56748 | R15: 12.48618
A16: 2015-02-15 | B16: 31 | D16: 0 | E16: 0 | F16: 0 | G16: 8.494 | H16: 8.494 | I16: 0.4247 | J16: 8.9187 | L16: 0 | M16: 0 | N16: 3.3976 | O16: 3.3976 | P16: 0.16988 | Q16: 3.56748 | R16: 12.48618
A17: 2015-03-15 | B17: 28 | D17: 0 | E17: 0 | F17: 0 | G17: 7.672 | H17: 7.672 | I17: 0.3836 | J17: 8.0556 | L17: 0 | M17: 0 | N17: 3.0688 | O17: 3.0688 | P17: 0.15344 | Q17: 3.22224 | R17: 11.27784
A18: 2015-04-15 | B18: 31 | D18: 0 | E18: 0 | F18: 0 | G18: 8.494 | H18: 8.494 | I18: 0.4247 | J18: 8.9187 | L18: 0 | M18: 0 | N18: 3.3976 | O18: 3.3976 | P18: 0.16988 | Q18: 3.56748 | R18: 12.48618
A19: Totals | B19: =SUM(B7:B18) -> 365 | C19: Gas | D19: =SUM(D7:D18) -> 1 | E19: 11.30585333 | F19: 0.5005101271 | G19: 100.01 | H19: 100.5105101 | I19: 5.025525506 | J19: 105.5360356 | K19: Electricity | L19: =SUM(L7:L18) -> 1 | M19: 0.1636 | N19: 40.004 | O19: 40.1676 | P19: 2.00838 | Q19: 42.17598 | R19: 147.7120156
B21: Error Codes
B22: Err1: | C22: Date must be greater than or equal to date above
B23: Err2: | C23: Gas reading must be greater than or equal to reading above
B24: Err3: | C24: Electricity reading must be greater than or equal to reading above

Sheet Sheet3
A1: Use the spin controls to adjust your gas and electricity kWh usage for each month (or just enter the amounts in the boxes), in rows 21 and 26 below, then scroll down to see the costs with the year's totals on the right, and a chart of the costs.
C19: =Sheet2!A7 -> 2014-05-15 | D19: =Sheet2!A8 -> 2014-06-15 | E19: =Sheet2!A9 -> 2014-07-15 | F19: =Sheet2!A10 -> 2014-08-15 | G19: =Sheet2!A11 -> 2014-09-15 | H19: =Sheet2!A12 -> 2014-10-15 | I19: =Sheet2!A13 -> 2014-11-15 | J19: =Sheet2!A14 -> 2014-12-15 | K19: =Sheet2!A15 -> 2015-01-15 | L19: =Sheet2!A16 -> 2015-02-15 | M19: =Sheet2!A17 -> 2015-03-15 | N19: =Sheet2!A18 -> 2015-04-15 | O19: Totals
A20: Actual Gas kWh Used: | C20: =Sheet2!E7 -> 11.30585333 | D20: =Sheet2!E8 -> 0 | E20: =Sheet2!E9 -> 0 | F20: =Sheet2!E10 -> 0 | G20: =Sheet2!E11 -> 0 | H20: =Sheet2!E12 -> 0 | I20: =Sheet2!E13 -> 0 | J20: =Sheet2!E14 -> 0 | K20: =Sheet2!E15 -> 0 | L20: =Sheet2!E16 -> 0 | M20: =Sheet2!E17 -> 0 | N20: =Sheet2!E18 -> 0 | O20: =SUM(C20:N20) -> 11.30585333
A21: Gas kWh Estimates : | C21: 899 | D21: 823 | E21: 815 | F21: 794 | G21: 764 | H21: 687 | I21: 673 | J21: 572 | K21: 646 | L21: 700 | M21: 756 | N21: 865 | O21: =SUM(C21:N21) -> 8994
A25: Actual Electricity kWh Used: | C25: =Sheet2!L7 -> 1 | D25: =Sheet2!L8 -> 0 | E25: =Sheet2!L9 -> 0 | F25: =Sheet2!L10 -> 0 | G25: =Sheet2!L11 -> 0 | H25: =Sheet2!L12 -> 0 | I25: =Sheet2!L13 -> 0 | J25: =Sheet2!L14 -> 0 | K25: =Sheet2!L15 -> 0 | L25: =Sheet2!L16 -> 0 | M25: =Sheet2!L17 -> 0 | N25: =Sheet2!L18 -> 0 | O25: =SUM(C25:N25) -> 1
A26: Electricity kWh Estimates: | C26: 186 | D26: 130 | E26: 163 | F26: 131 | G26: 126 | H26: 123 | I26: 126 | J26: 120 | K26: 120 | L26: 120 | M26: 122 | N26: 124 | O26: =SUM(C26:N26) -> 1591
C31: Estimated Costs | O31: Year's Costs
A32: Standing Charges inc. VAT: | C32: =(GSC+ESC)*Sheet2!B7/100+((GSC+ESC)*Sheet2!B7/100)*VATRate -> 12.0834 | D32: =(GSC+ESC)*Sheet2!B8/100+((GSC+ESC)*Sheet2!B8/100)*VATRate -> 12.48618 | E32: =(GSC+ESC)*Sheet2!B9/100+((GSC+ESC)*Sheet2!B9/100)*VATRate -> 12.0834 | F32: =(GSC+ESC)*Sheet2!B10/100+((GSC+ESC)*Sheet2!B10/100)*VATRate -> 12.48618 | G32: =(GSC+ESC)*Sheet2!B11/100+((GSC+ESC)*Sheet2!B11/100)*VATRate -> 12.48618 | H32: =(GSC+ESC)*Sheet2!B12/100+((GSC+ESC)*Sheet2!B12/100)*VATRate -> 12.0834 | I32: =(GSC+ESC)*Sheet2!B13/100+((GSC+ESC)*Sheet2!B13/100)*VATRate -> 12.48618 | J32: =(GSC+ESC)*Sheet2!B14/100+((GSC+ESC)*Sheet2!B14/100)*VATRate -> 12.0834 | K32: =(GSC+ESC)*Sheet2!B15/100+((GSC+ESC)*Sheet2!B15/100)*VATRate -> 12.48618 | L32: =(GSC+ESC)*Sheet2!B16/100+((GSC+ESC)*Sheet2!B16/100)*VATRate -> 12.48618 | M32: =(GSC+ESC)*Sheet2!B17/100+((GSC+ESC)*Sheet2!B17/100)*VATRate -> 11.27784 | N32: =(GSC+ESC)*Sheet2!B18/100+((GSC+ESC)*Sheet2!B18/100)*VATRate -> 12.48618 | O32: =SUM(C32:N32) -> 147.0147
A33: Gas inc. SC and VAT: | C33: =C21*GR/100+GSC*Sheet2!B7/100+(C21*GR/100+GSC*Sheet2!B7/100)*VATRate -> 50.4196665 | D33: =D21*GR/100+GSC*Sheet2!B8/100+(D21*GR/100+GSC*Sheet2!B8/100)*VATRate -> 47.1746205 | E33: =E21*GR/100+GSC*Sheet2!B9/100+(E21*GR/100+GSC*Sheet2!B9/100)*VATRate -> 46.5150525 | F33: =F21*GR/100+GSC*Sheet2!B10/100+(F21*GR/100+GSC*Sheet2!B10/100)*VATRate -> 45.826599 | G33: =G21*GR/100+GSC*Sheet2!B11/100+(G21*GR/100+GSC*Sheet2!B11/100)*VATRate -> 44.432094 | H33: =H21*GR/100+GSC*Sheet2!B12/100+(H21*GR/100+GSC*Sheet2!B12/100)*VATRate -> 40.5651645 | I33: =I21*GR/100+GSC*Sheet2!B13/100+(I21*GR/100+GSC*Sheet2!B13/100)*VATRate -> 40.2020955 | J33: =J21*GR/100+GSC*Sheet2!B14/100+(J21*GR/100+GSC*Sheet2!B14/100)*VATRate -> 35.219562 | K33: =K21*GR/100+GSC*Sheet2!B15/100+(K21*GR/100+GSC*Sheet2!B15/100)*VATRate -> 38.947041 | L33: =L21*GR/100+GSC*Sheet2!B16/100+(L21*GR/100+GSC*Sheet2!B16/100)*VATRate -> 41.45715 | M33: =M21*GR/100+GSC*Sheet2!B17/100+(M21*GR/100+GSC*Sheet2!B17/100)*VATRate -> 43.197126 | N33: =N21*GR/100+GSC*Sheet2!B18/100+(N21*GR/100+GSC*Sheet2!B18/100)*VATRate -> 49.1269275 | O33: =SUM(C33:N33) -> 523.083099
A34: Electricity inc. SC and VAT: | C34: =C26*ER/100+ESC*Sheet2!B7/100+(C26*ER/100+ESC*Sheet2!B7/100)*VATRate -> 35.40348 | D34: =D26*ER/100+ESC*Sheet2!B8/100+(D26*ER/100+ESC*Sheet2!B8/100)*VATRate -> 25.89888 | E34: =E26*ER/100+ESC*Sheet2!B9/100+(E26*ER/100+ESC*Sheet2!B9/100)*VATRate -> 31.45254 | F34: =F26*ER/100+ESC*Sheet2!B10/100+(F26*ER/100+ESC*Sheet2!B10/100)*VATRate -> 26.07066 | G34: =G26*ER/100+ESC*Sheet2!B11/100+(G26*ER/100+ESC*Sheet2!B11/100)*VATRate -> 25.21176 | H34: =H26*ER/100+ESC*Sheet2!B12/100+(H26*ER/100+ESC*Sheet2!B12/100)*VATRate -> 24.58134 | I34: =I26*ER/100+ESC*Sheet2!B13/100+(I26*ER/100+ESC*Sheet2!B13/100)*VATRate -> 25.21176 | J34: =J26*ER/100+ESC*Sheet2!B14/100+(J26*ER/100+ESC*Sheet2!B14/100)*VATRate -> 24.066 | K34: =K26*ER/100+ESC*Sheet2!B15/100+(K26*ER/100+ESC*Sheet2!B15/100)*VATRate -> 24.18108 | L34: =L26*ER/100+ESC*Sheet2!B16/100+(L26*ER/100+ESC*Sheet2!B16/100)*VATRate -> 24.18108 | M34: =M26*ER/100+ESC*Sheet2!B17/100+(M26*ER/100+ESC*Sheet2!B17/100)*VATRate -> 24.1794 | N34: =N26*ER/100+ESC*Sheet2!B18/100+(N26*ER/100+ESC*Sheet2!B18/100)*VATRate -> 24.8682 | O34: =SUM(C34:N34) -> 315.30618
A35: Total inc. SC and VAT: | C35: =C21*GR/100+C26*ER/100+(GSC+ESC)*Sheet2!B7/100+(C21*GR/100+C26*ER/100+(GSC+ESC)*Sheet2!B7/100)*VATRate -> 85.8231465 | D35: =D21*GR/100+D26*ER/100+(GSC+ESC)*Sheet2!B8/100+(D21*GR/100+D26*ER/100+(GSC+ESC)*Sheet2!B8/100)*VATRate -> 73.0735005 | E35: =E21*GR/100+E26*ER/100+(GSC+ESC)*Sheet2!B9/100+(E21*GR/100+E26*ER/100+(GSC+ESC)*Sheet2!B9/100)*VATRate -> 77.9675925 | F35: =F21*GR/100+F26*ER/100+(GSC+ESC)*Sheet2!B10/100+(F21*GR/100+F26*ER/100+(GSC+ESC)*Sheet2!B10/100)*VATRate -> 71.897259 | G35: =G21*GR/100+G26*ER/100+(GSC+ESC)*Sheet2!B11/100+(G21*GR/100+G26*ER/100+(GSC+ESC)*Sheet2!B11/100)*VATRate -> 69.643854 | H35: =H21*GR/100+H26*ER/100+(GSC+ESC)*Sheet2!B12/100+(H21*GR/100+H26*ER/100+(GSC+ESC)*Sheet2!B12/100)*VATRate -> 65.1465045 | I35: =I21*GR/100+I26*ER/100+(GSC+ESC)*Sheet2!B13/100+(I21*GR/100+I26*ER/100+(GSC+ESC)*Sheet2!B13/100)*VATRate -> 65.4138555 | J35: =J21*GR/100+J26*ER/100+(GSC+ESC)*Sheet2!B14/100+(J21*GR/100+J26*ER/100+(GSC+ESC)*Sheet2!B14/100)*VATRate -> 59.285562 | K35: =K21*GR/100+K26*ER/100+(GSC+ESC)*Sheet2!B15/100+(K21*GR/100+K26*ER/100+(GSC+ESC)*Sheet2!B15/100)*VATRate -> 63.128121 | L35: =L21*GR/100+L26*ER/100+(GSC+ESC)*Sheet2!B16/100+(L21*GR/100+L26*ER/100+(GSC+ESC)*Sheet2!B16/100)*VATRate -> 65.63823 | M35: =M21*GR/100+M26*ER/100+(GSC+ESC)*Sheet2!B17/100+(M21*GR/100+M26*ER/100+(GSC+ESC)*Sheet2!B17/100)*VATRate -> 67.376526 | N35: =N21*GR/100+N26*ER/100+(GSC+ESC)*Sheet2!B18/100+(N21*GR/100+N26*ER/100+(GSC+ESC)*Sheet2!B18/100)*VATRate -> 73.9951275 | O35: =SUM(C35:N35) -> 838.389279
